[Event "98th Caplin Hastings Masters 2024-25"]
[Site "Hastings"]
[Date "2024.12.29"]
[Round "3.38"]
[White "Norinkeviciute, Rasa"]
[Black "Kim, Yegeon"]
[Result "0-1"]
[ECO "A25"]
[WhiteElo "1952"]
[BlackElo "1697"]
[Annotator "RC"]
[PlyCount "140"]
[EventDate "2024.12.23"]
[EventType "swiss"]
[EventCountry "ENG"]
[SourceTitle "playchess.com"]
[Source "ChessBase"]
[SourceQuality "1"]
[TimeControl "5400+30"]

1. c4 {[%emt 0:00:26]} e5 {[%emt 0:00:29]} 2. g3 {[%emt 0:00:13]} Nf6 {[%emt 0:00:06]} 3. Bg2 {[%emt 0:00:05]} Nc6 {[%emt 0:00:38]} 4. Nc3 {[%emt 0:00:23]} Bb4 {[%emt 0:00:07]} 5. Nd5 {[%emt 0:00:21]} Bc5 {[%emt 0:00:05]} 6. a3 {[%emt 0:03:03]} a6 {[%emt 0:09:11]} 7. e3 {[%emt 0:00:58]} O-O {[%emt 0:07:48]} 8. Ne2 {[%emt 0:02:00]} Re8 {[%emt 0:10:30]} 9. Nec3 {[%emt 0:03:48]} d6 {[%emt 0:07:20]} 10. d3 {[%emt 0:05:20]} Be6 {[%emt 0:09:51]} 11. O-O {[%emt 0:02:12]} Ba7 {[%emt 0:04:09]} 12. b4 {[%emt 0:02:23]} Rb8 {[%emt 0:13:32]} 13. Bb2 {[%emt 0:04:37]} Nd7 {[%emt 0:03:50]} 14. Rc1 {[%emt 0:04:14]} Nf8 {[%emt 0:03:59]} 15. b5 {[%emt 0:08:35]} Na5 {[%emt 0:06:48]} 16. a4 {[%emt 0:07:43]} c6 {[%emt 0:06:56]} 17. Nb4 {[%emt 0:00:43]} Bc5 {[%emt 0:02:49]} 18. Ba3 {[%emt 0:01:05]} Bxc4 {[%emt 0:02:58]} 19. Ne4 {[%emt 0:13:58]} Bb3 {[%emt 0:02:46]} 20. Qd2 {[%emt 0:00:53]} Bxa4 {[%emt 0:00:29]} 21. bxa6 {[%emt 0:01:40]} Nb3 {[%emt 0:01:52]} 22. Qc3 {[%emt 0:00:13]} Nxc1 {[%emt 0:00:35]} 23. Rxc1 {[%emt 0:00:10]} bxa6 {[%emt 0:04:38]} 24. Nxc5 {[%emt 0:01:35]} dxc5 {[%emt 0:00:01]} 25. Qxc5 {[%emt 0:00:12]} Qb6 {[%emt 0:00:56]} 26. Qc3 {[%emt 0:04:57]} c5 {[%emt 0:00:24]} 27. Nd5 {[%emt 0:01:29]} Qb3 {[%emt 0:00:38]} 28. Qxc5 {[%emt 0:01:30]} Ne6 {[%emt 0:00:31]} 29. Qd6 {[%emt 0:18:56]} Red8 {[%emt 0:00:20]} 30. Qe7 {[%emt 0:08:20]} Rxd5 {[%emt 0:00:24]} 31. Bxd5 {[%emt 0:01:14]} Qxd5 {[%emt 0:00:04]} 32. Qa7 {[%emt 0:01:07]} Ra8 {[%emt 0:00:41]} 33. e4 {[%emt 0:01:12]} Rxa7 {[%emt 0:00:59]} 34. exd5 {[%emt 0:00:06]} Nd8 {[%emt 0:00:21]} 35. Rc8 {[%emt 0:00:24]} Rd7 {[%emt 0:00:14]} 36. Ra8 {[%emt 0:01:49]} f6 {[%emt 0:00:32]} 37. Rxa6 {[%emt 0:00:22]} Bb5 {[%emt 0:00:23]} 38. Rb6 {[%emt 0:00:41]} Bxd3 {[%emt 0:00:30]} 39. Rb8 {[%emt 0:00:18]} Kf7 {[%emt 0:00:20]} 40. d6 {[%emt 0:00:09]} Nc6 {[%emt 0:00:41]} 41. Rb3 {[%emt 0:01:03]} Be4 {[%emt 0:00:30]} 42. f4 {[%emt 0:00:12]} exf4 {[%emt 0:00:28]} 43. gxf4 {[%emt 0:00:03]} f5 {[%emt 0:00:30]} 44. Kf2 {[%emt 0:00:15]} Ke6 {[%emt 0:00:33]} 45. Rh3 {[%emt 0:00:16]} h6 {[%emt 0:00:19]} 46. Rg3 {[%emt 0:00:21]} Na5 {[%emt 0:00:36]} 47. Rg6+ {[%emt 0:01:10]} Kf7 {[%emt 0:00:09]} 48. Rg1 {[%emt 0:01:14]} Nc4 {[%emt 0:00:18]} 49. Bc5 {[%emt 0:00:28]} Nxd6 {[%emt 0:00:28]} 50. Bd4 {[%emt 0:00:16]} Ne8 {[%emt 0:00:01]} 51. Be5 {[%emt 0:00:13]} Nf6 {[%emt 0:00:19]} 52. h3 {[%emt 0:00:22]} Rd3 {[%emt 0:00:32]} 53. Ra1 {[%emt 0:01:06]} Rxh3 {[%emt 0:00:23]} 54. Ra7+ {[%emt 0:00:18]} Kg6 {[%emt 0:00:03]} 55. Ra6 {[%emt 0:00:08]} Kh7 {[%emt 0:00:45]} 56. Ba1 {[%emt 0:00:53]} Rf3+ {[%emt 0:00:13]} 57. Ke1 {[%emt 0:00:28]} Rxf4 {[%emt 0:00:21]} 58. Ra7 {[%emt 0:00:13]} Kg6 {[%emt 0:00:15]} 59. Be5 {[%emt 0:00:16]} Rf3 {[%emt 0:00:18]} 60. Ke2 {[%emt 0:00:11]} Rb3 {[%emt 0:00:33]} 61. Ba1 {[%emt 0:02:10]} Rb7 {[%emt 0:00:16]} 62. Ra3 {[%emt 0:00:00]} Kf7 {[%emt 0:00:26]} 63. Kf2 {[%emt 0:00:00]} g5 {[%emt 0:00:46]} 64. Kg3 {[%emt 0:00:00]} Rb6 {[%emt 0:02:17]} 65. Rc3 {[%emt 0:00:55]} Kg6 {[%emt 0:00:44]} 66. Ra3 {[%emt 0:00:07]} Rc6 {[%emt 0:00:27]} 67. Kf2 {[%emt 0:01:24]} h5 {[%emt 0:00:15]} 68. Bd4 {[%emt 0:00:24]} f4 {[%emt 0:00:30]} 69. Ra4 {[%emt 0:00:19]} Bf5 {[%emt 0:00:23]} 70. Ra2 {[%emt 0:00:19]} Rc2+ {[%emt 0:00:08]} 0-1

[Event "98th Caplin Hastings Masters 2024-25"]
[Site "Hastings"]
[Date "2024.12.29"]
[Round "3.39"]
[White "Chapman, Luke"]
[Black "Alcindor, Samuel"]
[Result "0-1"]
[ECO "B23"]
[WhiteElo "1706"]
[BlackElo "1927"]
[Annotator "NA RC"]
[PlyCount "76"]
[EventDate "2024.12.23"]
[EventType "swiss"]
[EventCountry "ENG"]
[SourceTitle "playchess.com"]
[Source "ChessBase"]
[SourceQuality "1"]
[TimeControl "5400+30"]

1. e4 {[%emt 0:00:03]} c5 {[%emt 0:00:22]} 2. Nc3 {[%emt 0:00:05]} g6 {[%emt 0:00:19]} 3. f4 {[%emt 0:00:21]} Bg7 {[%emt 0:00:31]} 4. Nf3 {[%emt 0:00:04]} Nc6 {[%emt 0:00:47]} 5. a4 {[%emt 0:00:05]} e6 {[%emt 0:00:47]} 6. e5 {[%emt 0:00:11]} d5 {[%emt 0:01:16]} 7. d4 {[%emt 0:00:38]} cxd4 {[%emt 0:07:32]} 8. Nb5 {[%emt 0:00:43]} Bf8 {[%emt 0:00:18]} 9. Nbxd4 {[%emt 0:01:43]} a6 {[%emt 0:02:51]} 10. Be3 {[%emt 0:11:55]} Nh6 {[%emt 0:03:57]} 11. Qd2 {[%emt 0:02:21]} Bd7 {[%emt 0:02:53]} 12. h3 {[%emt 0:03:30]} Nf5 {[%emt 0:09:48]} 13. Nxf5 {[%emt 0:02:50]} gxf5 {[%emt 0:00:21]} 14. g4 {[%emt 0:05:05]} fxg4 {[%emt 0:00:56]} 15. hxg4 {[%emt 0:01:30]} Qc7 {[%emt 0:01:05]} 16. Qf2 {[%emt 0:04:43]} d4 {[%emt 0:12:22]} 17. Nxd4 {[%emt 0:01:42]} Rc8 {[%emt 0:04:58]} 18. c3 {[%emt 0:07:14]} Na5 {[%emt 0:02:47]} 19. Rh3 {[%emt 0:11:47]} Nc4 {[%emt 0:01:52]} 20. Bxc4 {[%emt 0:01:43]} Qxc4 {[%emt 0:00:16]} 21. Qe2 {[%emt 0:00:47]} Bxa4 {[%emt 0:14:29]} 22. Qxc4 {[%emt 0:01:11]} Rxc4 {[%emt 0:00:06]} 23. b3 {[%emt 0:02:01]} Rxd4 {[%emt 0:00:07]} 24. Bxd4 {[%emt 0:04:33]} Bxb3 {[%emt 0:00:11]} 25. Ke2 {[%emt 0:01:13]} Rg8 {[%emt 0:02:41]} 26. Rxh7 {[%emt 0:02:04]} Be7 {[%emt 0:04:40]} 27. Kf3 {[%emt 0:01:47]} Bd8 {[%emt 0:01:03]} 28. f5 {[%emt 0:01:34]} exf5 {[%emt 0:01:23]} 29. gxf5 {[%emt 0:00:08]} a5 {[%emt 0:01:22]} 30. Rg1 {[%emt 0:05:12]} Rxg1 {[%emt 0:01:02]} 31. Bxg1 {[%emt 0:00:04]} a4 {[%emt 0:01:36]} 32. Bc5 {[%emt 0:00:06]} Ba5 {[%emt 0:07:38]} 33. Bb4 {[%emt 0:06:36]} Bxb4 {[%emt 0:02:50]} 34. cxb4 {[%emt 0:00:03]} a3 {[%emt 0:04:00]} 35. Rh8+ {[%emt 0:00:11]} Kd7 {[%emt 0:00:10]} 36. Ra8 {[%emt 0:00:06]} a2 {[%emt 0:00:07]} 37. Ke4 {[%emt 0:00:13]} b5 {[%emt 0:00:22]} 38. Kd4 {[%emt 0:00:57]} Ba4 {[%emt 0:00:33]} 0-1

[Event "98th Caplin Hastings Masters 2024-25"]
[Site "Hastings"]
[Date "2024.12.29"]
[Round "3.40"]
[White "Ahn, Sungmin"]
[Black "Choi, Hyunbin"]
[Result "1-0"]
[ECO "C54"]
[WhiteElo "1926"]
[BlackElo "1673"]
[Annotator "NA RC"]
[PlyCount "29"]
[EventDate "2024.12.23"]
[EventType "swiss"]
[EventCountry "ENG"]
[SourceTitle "playchess.com"]
[Source "ChessBase"]
[SourceQuality "1"]
[TimeControl "5400+30"]

1. e4 {[%emt 0:00:01]} e5 {[%emt 0:00:18]} 2. Bc4 {[%emt 0:00:04]} Nf6 {[%emt 0:00:21]} 3. d3 {[%emt 0:00:01]} Nc6 {[%emt 0:00:58]} 4. Nf3 {[%emt 0:00:19]} Bc5 {[%emt 0:01:31]} 5. c3 {[%emt 0:00:16]} O-O {[%emt 0:01:56]} 6. O-O {[%emt 0:00:43]} d5 {[%emt 0:02:04]} 7. exd5 {[%emt 0:00:05]} Nxd5 {[%emt 0:00:03]} 8. Nbd2 {[%emt 0:00:13]} a5 {[%emt 0:00:33]} 9. Re1 {[%emt 0:01:51]} Re8 {[%emt 0:01:24]} 10. a4 {[%emt 0:01:15]} Bg4 {[%emt 0:03:50]} 11. Qb3 {[%emt 0:00:31]} Be6 {[%emt 0:01:58]} 12. Nxe5 {[%emt 0:07:10]} Qf6 {[%emt 0:02:31]} 13. Nef3 {[%emt 0:00:42]} Qd8 {[%emt 0:03:18]} 14. Ne4 {[%emt 0:02:04]} Bb6 {[%emt 0:01:25]} 15. Neg5 {[%emt 0:03:02]} 1-0

[Event "98th Caplin Hastings Masters 2024-25"]
[Site "Hastings"]
[Date "2024.12.29"]
[Round "3.41"]
[White "Badacsonyi, Stanley"]
[Black "Zhou, Yang-Fan"]
[Result "0-1"]
[ECO "E93"]
[WhiteElo "2266"]
[BlackElo "2424"]
[Annotator "TA"]
[PlyCount "120"]
[EventDate "2024.12.23"]
[EventType "swiss"]
[EventCountry "ENG"]
[SourceTitle "playchess.com"]
[Source "ChessBase"]
[SourceQuality "1"]
[TimeControl "5400+30"]

{[%evp 20,120,38,37,77,78,93,87,72,41,48,30,25,24,81,89,100,22,22,0,13,13,14,16,22,0,-2,-135,-114,-122,-126,-132,-127,-116,-130,-124,-143,-141,-132,-131,-173,-154,-156,-187,-145,-144,-138,-244,-250,-253,-251,-309,-309,-416,-429,-412,-412,-448,-426,-506,-491,-561,-584,-584,-596,-987,-620,-832,-789,-757,-640,-666,-639,-635,-630,-859,-698,-758,-640,-958,-797,-1562,-1450,-1251,-864,-864,-864,-831,-780,-828,-764,-1398,-1352,-1047,-1600,-1579,-1372,-1769,-1749,-1726,-1655,-1478,-1202]} 1. d4 {[%emt 0:00:01]} Nf6 {[%emt 0:03:06]} 2. c4 {[%emt 0:00:08]} g6 {[%emt 0:00:18]} 3. Nc3 {[%emt 0:00:09]} Bg7 {[%emt 0:00:05]} 4. e4 {[%emt 0:00:04]} O-O {[%emt 0:00:07]} 5. Be3 {[%emt 0:00:06]} d6 {[%emt 0:00:30]} 6. Be2 {[%emt 0:00:08]} Nbd7 {[%emt 0:01:43]} 7. Nf3 {[%emt 0:00:56]} e5 {[%emt 0:00:20]} 8. d5 {[%emt 0:00:09]} Ng4 {[%emt 0:03:25]} 9. Bg5 {[%emt 0:01:15][%cal Be3g5,Bg5h4,Bh4f2][%mdl 32]} f6 {[%emt 0:00:07]} 10. Bh4 {[%emt 0:00:23]} Nh6 {[%emt 0:01:58]} 11. Nd2 {[%emt 0:01:38]} c5 {[%emt 0:18:32]} 12. f3 {[%emt 0:01:42]} Nf7 {[%emt 0:01:54]} 13. a3 {[%emt 0:00:51]} Bh6 {[%emt 0:00:41]} 14. Bf2 {[%emt 0:00:24]} f5 {[%emt 0:01:55]} 15. Bd3 {[%emt 0:01:47]} Nf6 {[%emt 0:05:51]} 16. Qc2 {[%emt 0:02:46]} fxe4 {[%emt 0:03:35]} (16... f4 $11) 17. Ndxe4 {[%emt 0:00:50]} Nxe4 {[%emt 0:05:48]} 18. fxe4 {[%emt 0:03:00]} (18. Bxe4 Ng5 $14) ({White should play} 18. Nxe4 $16 Ng5 19. Ng3) 18... Bd7 {[%emt 0:04:12]} 19. Qe2 {[%emt 0:01:49]} Qg5 {[%emt 0:04:58]} 20. O-O {[%emt 0:03:12]} Bg4 {[%emt 0:02:35]} 21. Qc2 {[%emt 0:01:00]} Qh5 {[%emt 0:02:36]} 22. Be2 {[%emt 0:02:21]} Bf4 {[%emt 0:03:10][%csl Gf4][%cal Rh5h2]} 23. g3 {[%emt 0:02:51] [#]} (23. h3 $11 {remains equal.} Bxe2 24. Nxe2) 23... Ng5 $1 $17 {[%emt 0:06:07]} 24. Bxg4 {[%emt 0:16:06]} Qxg4 {[%emt 0:00:15]} 25. Qd1 {[%emt 0:01:23]} Nf3+ {[%emt 0:06:59]} 26. Kg2 {[%emt 0:01:26]} Nh4+ {[%emt 0:13:08]} (26... Bd2 {simplifies} 27. Bg1 Bxc3 28. Rxf3 Qxf3+ 29. Qxf3 Rxf3 30. Kxf3 Bxb2 31. Ra2 Bd4) 27. Kh1 {[%emt 0:00:20] [#]} Qh3 $1 {[%emt 0:00:15]} 28. Rg1 {[%emt 0:00:12][%cal Od1e2] [#] Hoping for Qe2!. Inhibits Qg2+.} Bh6 $1 {[%emt 0:03:29]} 29. Qe2 {[%emt 0:02:15]} Nf3 {[%emt 0:00:13][%csl Gf3][%cal Rh3h2]} 30. Rg2 {[%emt 0:00:05]} Rf6 $40 {[%emt 0:01:26][%mdl 128] Black goes for the king. Black has more active pieces.} 31. Nb5 {[%emt 0:03:58][%cal Ob5d6]} Raf8 {[%emt 0:01:28]} 32. Bg1 {[%emt 0:14:25]} Nd4 {[%emt 0:00:27]} 33. Nxd4 {[%emt 0:00:07]} (33. Qd1 $17 {was the only defense.}) 33... cxd4 $19 {[%emt 0:00:24]} (33... exd4 34. e5 dxe5 35. Re1) 34. Rd1 {[%emt 0:00:34]} Rf3 {[%emt 0:01:40]} 35. b4 {[%emt 0:02:06]} b6 {[%emt 0:01:17][%cal Oh3g4]} ({Don't play} 35... Rxa3 36. c5 $19) 36. c5 {[%emt 0:00:08]} bxc5 {[%emt 0:00:14]} 37. bxc5 {[%emt 0:00:06]} dxc5 {[%emt 0:00:06]} 38. Qa2 {[%emt 0:00:32]} Qd7 {[%emt 0:01:21]} 39. d6+ {[%emt 0:00:09]} Qf7 {[%emt 0:00:32]} 40. Qc2 {[%emt 0:01:09]} c4 {[%emt 0:01:00][%cal Od4d3]} ({Inferior is} 40... Rxa3 41. Qxc5 Ra2 (41... Qb3 42. d7 $16) 42. Rxa2 Qxa2 (42... Qf3+ $2 43. Rg2 $18) 43. Qxe5 $11) 41. Qa4 {[%emt 0:00:26]} c3 {[%emt 0:00:53]} 42. Qc6 {[%emt 0:00:14]} Qe6 {[%emt 0:00:59]} 43. Rb1 {[%emt 0:00:20]} R3f7 {[%emt 0:00:46]} 44. Rb5 {[%emt 0:00:26]} Rd8 {[%emt 0:00:44]} 45. Rd5 {[%emt 0:00:14]} Bf8 {[%emt 0:00:24]} 46. Qb5 {[%emt 0:01:15]} Bxd6 {[%emt 0:00:33]} 47. Qa5 {[%emt 0:00:30]} Re8 {[%emt 0:00:46]} 48. Qb5 {[%emt 0:00:48]} Bxa3 {[%emt 0:00:34]} 49. Ra2 {[%emt 0:00:10]} Bf8 {[%emt 0:00:28][%cal Oe6g4]} 50. Ra6 {[%emt 0:00:15]} Qg4 {[%emt 0:00:42][%cal Rg4e4]} 51. Qd3 {[%emt 0:00:16]} Qf3+ {[%emt 0:00:32]} 52. Qxf3 {[%emt 0:00:03]} Rxf3 {[%emt 0:00:05]} 53. Rc6 {[%emt 0:00:10]} Rf7 {[%emt 0:00:37]} 54. Kg2 {[%emt 0:00:09]} Rb7 {[%emt 0:00:46]} 55. h4 {[%emt 0:00:14]} Rbb8 {[%emt 0:00:28] And now ...Rec8 would win.} 56. Bxd4 {[%emt 0:00:32]} exd4 {[%emt 0:00:07]} 57. Rxd4 {[%emt 0:00:03]} Rbc8 {[%emt 0:00:53]} 58. Rdc4 {[%emt 0:00:09]} Rxc6 {[%emt 0:00:05]} 59. Rxc6 {[%emt 0:00:06]} Rxe4 {[%emt 0:00:12]} 60. Rxc3 {[%emt 0:00:05]} a5 {[%emt 0:00:11]} 0-1

[Event "98th Caplin Hastings Masters 2024-25"]
[Site "Hastings"]
[Date "2024.12.29"]
[Round "3.42"]
[White "Kim, Nayoon B"]
[Black "Bilandzic, Ante"]
[Result "0-1"]
[ECO "A22"]
[WhiteElo "1663"]
[BlackElo "1912"]
[Annotator "RC"]
[PlyCount "94"]
[EventDate "2024.12.23"]
[EventType "swiss"]
[EventCountry "ENG"]
[SourceTitle "playchess.com"]
[Source "ChessBase"]
[SourceQuality "1"]
[TimeControl "5400+30"]

1. c4 {[%emt 0:00:02]} e5 {[%emt 0:00:05]} 2. Nc3 {[%emt 0:00:07]} Nf6 {[%emt 0:00:17]} 3. g3 {[%emt 0:00:07]} Bb4 {[%emt 0:00:36]} 4. Bg2 {[%emt 0:00:13]} Bxc3 {[%emt 0:00:25]} 5. bxc3 {[%emt 0:00:10]} O-O {[%emt 0:00:27]} 6. Nf3 {[%emt 0:00:09]} Re8 {[%emt 0:00:10]} 7. O-O {[%emt 0:00:33]} d6 {[%emt 0:06:50]} 8. Qc2 {[%emt 0:02:51]} c6 {[%emt 0:03:04]} 9. Rd1 {[%emt 0:04:53]} h6 {[%emt 0:01:38]} 10. e3 {[%emt 0:06:14]} Bg4 {[%emt 0:04:32]} 11. h3 {[%emt 0:04:13]} Bh5 {[%emt 0:00:40]} 12. g4 {[%emt 0:00:17]} Bg6 {[%emt 0:00:05]} 13. Qb2 {[%emt 0:00:12]} Qc8 {[%emt 0:04:34]} 14. d4 {[%emt 0:03:42]} Nbd7 {[%emt 0:02:51]} 15. Nd2 {[%emt 0:05:38]} Nb6 {[%emt 0:02:09]} 16. a4 {[%emt 0:03:39]} Bd3 {[%emt 0:03:55]} 17. c5 {[%emt 0:04:00]} dxc5 {[%emt 0:00:23]} 18. dxc5 {[%emt 0:01:13]} Nc4 {[%emt 0:05:11]} 19. Nxc4 {[%emt 0:00:36]} Bxc4 {[%emt 0:00:02]} 20. Qb4 {[%emt 0:00:25]} Bd5 {[%emt 0:03:25]} 21. e4 {[%emt 0:02:14]} Be6 {[%emt 0:00:01]} 22. f4 {[%emt 0:00:35]} exf4 {[%emt 0:00:22]} 23. Bxf4 {[%emt 0:00:08]} Bxg4 {[%emt 0:08:41]} 24. hxg4 {[%emt 0:03:53]} Qxg4 {[%emt 0:00:07]} 25. Bh2 {[%emt 0:01:15]} Rxe4 {[%emt 0:00:25]} 26. Qxb7 {[%emt 0:00:45]} Rc8 {[%emt 0:10:22]} 27. Re1 {[%emt 0:00:28]} h5 {[%emt 0:01:51]} 28. Rxe4 {[%emt 0:00:37]} Nxe4 {[%emt 0:00:06]} 29. Rf1 {[%emt 0:03:10]} f6 {[%emt 0:02:51]} 30. Kh1 {[%emt 0:02:27]} Nxc5 {[%emt 0:05:22]} 31. Qxa7 {[%emt 0:00:58]} Qc4 {[%emt 0:02:35]} 32. Rg1 {[%emt 0:03:59]} g5 {[%emt 0:03:46]} 33. Qe7 {[%emt 0:06:10]} Rf8 {[%emt 0:06:57]} 34. Bd6 {[%emt 0:09:00]} Qh4+ {[%emt 0:00:09]} 35. Bh2 {[%emt 0:00:10]} Nd3 {[%emt 0:04:09]} 36. Bxc6 {[%emt 0:15:10]} Nf2+ {[%emt 0:03:38]} 37. Kg2 {[%emt 0:00:07]} Qh3+ {[%emt 0:00:05]} 38. Kxf2 {[%emt 0:00:06]} Qxh2+ {[%emt 0:00:03]} 39. Rg2 {[%emt 0:00:19]} Qf4+ {[%emt 0:00:06]} 40. Kg1 {[%emt 0:01:48]} Rb8 {[%emt 0:00:09]} 41. Bb5 {[%emt 0:07:40]} Qc1+ {[%emt 0:00:08]} 42. Kh2 {[%emt 0:00:10]} Qxc3 {[%emt 0:00:08]} 43. Be8 {[%emt 0:03:44]} Qc4 {[%emt 0:02:30]} 44. Bd7 {[%emt 0:03:03]} Qf4+ {[%emt 0:00:30]} 45. Kh1 {[%emt 0:02:00]} Rb1+ {[%emt 0:03:03]} 46. Rg1 {[%emt 0:00:08]} Qf3+ {[%emt 0:00:10]} 47. Kh2 {[%emt 0:00:14]} Rb2+ {[%emt 0:00:07]} 0-1

[Event "98th Caplin Hastings Masters 2024-25"]
[Site "Hastings"]
[Date "2024.12.29"]
[Round "3.43"]
[White "Jukes, Sam"]
[Black "Li, Jack"]
[Result "0-1"]
[ECO "B48"]
[WhiteElo "1911"]
[BlackElo "1717"]
[Annotator "NA RC"]
[PlyCount "56"]
[EventDate "2024.12.23"]
[EventType "swiss"]
[EventCountry "ENG"]
[SourceTitle "playchess.com"]
[Source "ChessBase"]
[SourceQuality "1"]
[TimeControl "5400+30"]

1. e4 {[%emt 0:00:02]} c5 {[%emt 0:00:04]} 2. Nf3 {[%emt 0:00:05]} e6 {[%emt 0:00:05]} 3. d4 {[%emt 0:00:05]} cxd4 {[%emt 0:00:04]} 4. Nxd4 {[%emt 0:00:14]} Nc6 {[%emt 0:00:05]} 5. Nc3 {[%emt 0:00:14]} Qc7 {[%emt 0:00:04]} 6. Be3 {[%emt 0:00:26]} a6 {[%emt 0:00:06]} 7. a3 {[%emt 0:00:14]} b5 {[%emt 0:01:32]} 8. Nxc6 {[%emt 0:00:36]} Qxc6 {[%emt 0:00:05]} 9. Bd3 {[%emt 0:03:04]} Bb7 {[%emt 0:00:41]} 10. Qd2 {[%emt 0:02:07]} Rc8 {[%emt 0:03:11]} 11. Ne2 {[%emt 0:09:16]} Nf6 {[%emt 0:01:08]} 12. f3 {[%emt 0:01:56]} d5 {[%emt 0:05:02]} 13. e5 {[%emt 0:02:50]} Nd7 {[%emt 0:01:16]} 14. Nd4 {[%emt 0:01:20]} Qc7 {[%emt 0:00:59]} 15. f4 {[%emt 0:00:28]} Nc5 {[%emt 0:00:26]} 16. O-O {[%emt 0:07:44]} Be7 {[%emt 0:00:39]} 17. c3 {[%emt 0:07:52]} g6 {[%emt 0:06:19]} 18. g4 {[%emt 0:06:52]} Ne4 {[%emt 0:03:45]} 19. Qe2 {[%emt 0:01:13]} Bc5 {[%emt 0:07:49]} 20. Nf3 {[%emt 0:05:08]} h5 {[%emt 0:02:14]} 21. gxh5 {[%emt 0:08:46]} Rxh5 {[%emt 0:00:45]} 22. Bxe4 {[%emt 0:00:16]} dxe4 {[%emt 0:00:12]} 23. Ng5 {[%emt 0:00:28]} Rd8 {[%emt 0:13:43]} 24. Rad1 {[%emt 0:05:06]} Rd3 {[%emt 0:03:27]} 25. Bd4 {[%emt 0:04:47]} Bxd4+ {[%emt 0:07:41]} 26. cxd4 {[%emt 0:00:14]} Qc4 {[%emt 0:00:18]} 27. Rxd3 {[%emt 0:07:59]} exd3 {[%emt 0:00:11]} 28. Qf2 {[%emt 0:00:08]} Qd5 {[%emt 0:02:57]} 0-1

[Event "98th Caplin Hastings Masters 2024-25"]
[Site "Hastings"]
[Date "2024.12.29"]
[Round "3.44"]
[White "Muir, Andrew J"]
[Black "Vaidyanathan, Adithya"]
[Result "1-0"]
[ECO "A59"]
[WhiteElo "2214"]
[BlackElo "1904"]
[Annotator "RC"]
[PlyCount "153"]
[EventDate "2024.12.23"]
[EventType "swiss"]
[EventCountry "ENG"]
[SourceTitle "playchess.com"]
[Source "ChessBase"]
[SourceQuality "1"]
[TimeControl "5400+30"]

1. d4 {[%emt 0:00:02]} Nf6 {[%emt 0:01:11]} 2. c4 {[%emt 0:00:07]} c5 {[%emt 0:00:05]} 3. d5 {[%emt 0:00:09]} b5 {[%emt 0:00:06]} 4. cxb5 {[%emt 0:00:13]} a6 {[%emt 0:00:06]} 5. bxa6 {[%emt 0:00:10]} Bxa6 {[%emt 0:00:06]} 6. Nc3 {[%emt 0:00:12]} d6 {[%emt 0:00:07]} 7. e4 {[%emt 0:00:13]} Bxf1 {[%emt 0:00:07]} 8. Kxf1 {[%emt 0:00:04]} g6 {[%emt 0:00:07]} 9. g3 {[%emt 0:00:09]} Bg7 {[%emt 0:00:11]} 10. Kg2 {[%emt 0:00:05]} O-O {[%emt 0:00:04]} 11. Nf3 {[%emt 0:00:09]} Qb6 {[%emt 0:00:09]} 12. e5 {[%emt 0:07:26]} dxe5 {[%emt 0:05:45]} 13. Nxe5 {[%emt 0:00:16]} Na6 {[%emt 0:00:17]} 14. Re1 {[%emt 0:03:41]} Nb4 {[%emt 0:00:36]} 15. Bg5 {[%emt 0:08:49]} Rad8 {[%emt 0:07:24]} 16. Bxf6 {[%emt 0:13:21]} Bxf6 {[%emt 0:00:21]} 17. Qb3 {[%emt 0:02:25]} Qb8 {[%emt 0:07:33]} 18. f4 {[%emt 0:03:21]} Qa8 {[%emt 0:00:26]} 19. Rad1 {[%emt 0:03:33]} e6 {[%emt 0:02:32]} 20. Ne4 {[%emt 0:16:08]} Be7 {[%emt 0:08:06]} 21. a3 {[%emt 0:15:49]} Nxd5 {[%emt 0:01:06]} 22. Kh3 {[%emt 0:00:45]} Rb8 {[%emt 0:05:16]} 23. Qc2 {[%emt 0:00:21]} Qb7 {[%emt 0:00:29]} 24. Rd2 {[%emt 0:01:55]} Qb3 {[%emt 0:03:10]} 25. Qxb3 {[%emt 0:02:23]} Rxb3 {[%emt 0:00:07]} 26. Kg2 {[%emt 0:01:48]} f5 {[%emt 0:08:09]} 27. Nf2 {[%emt 0:03:55]} Rd8 {[%emt 0:04:04]} 28. Nc4 {[%emt 0:02:52]} Kf7 {[%emt 0:01:09]} 29. Nd3 {[%emt 0:01:09]} Kf6 {[%emt 0:14:49]} 30. Kh1 {[%emt 0:05:23]} Nc7 {[%emt 0:06:13]} 31. Red1 {[%emt 0:01:14]} Nb5 {[%emt 0:04:06]} 32. Nc1 {[%emt 0:00:24]} Rxd2 {[%emt 0:01:57]} 33. Rxd2 {[%emt 0:00:08]} Nxa3 {[%emt 0:00:55]} 34. Nxa3 {[%emt 0:01:05]} Rb4 {[%emt 0:00:10]} 35. Rc2 {[%emt 0:00:38]} g5 {[%emt 0:01:03]} 36. Nc4 {[%emt 0:00:38]} gxf4 {[%emt 0:00:19]} 37. gxf4 {[%emt 0:00:04]} Ra4 {[%emt 0:00:16]} 38. Nd3 {[%emt 0:00:12]} Ra6 {[%emt 0:01:27]} 39. Kg2 {[%emt 0:00:09]} Ra7 {[%emt 0:00:48]} 40. Kf3 {[%emt 0:00:12]} Rd7 {[%emt 0:00:32]} 41. Nce5 {[%emt 0:01:45]} Rd5 {[%emt 0:00:09]} 42. Nxc5 {[%emt 0:00:42]} Bd6 {[%emt 0:00:59]} 43. Ncd7+ {[%emt 0:01:08]} Ke7 {[%emt 0:00:13]} 44. Rg2 {[%emt 0:00:05]} Rb5 {[%emt 0:01:03]} 45. Rg7+ {[%emt 0:01:53]} Kd8 {[%emt 0:00:16]} 46. Nc4 {[%emt 0:00:53]} Rb3+ {[%emt 0:00:29]} 47. Ke2 {[%emt 0:00:21]} Bxf4 {[%emt 0:00:10]} 48. Nc5 {[%emt 0:00:21]} Rb4 {[%emt 0:00:55]} 49. Nxe6+ {[%emt 0:00:13]} Ke8 {[%emt 0:00:22]} 50. Nxf4 {[%emt 0:00:54]} Rxc4 {[%emt 0:00:02]} 51. Ke3 {[%emt 0:00:41]} Rc2 {[%emt 0:00:31]} 52. Rg2 {[%emt 0:00:09]} Rc4 {[%emt 0:00:15]} 53. Nd5 {[%emt 0:00:16]} Kf7 {[%emt 0:00:07]} 54. b4 {[%emt 0:00:55]} Re4+ {[%emt 0:00:46]} 55. Kd3 {[%emt 0:01:17]} Ke6 {[%emt 0:00:10]} 56. Nc7+ {[%emt 0:00:06]} Kd6 {[%emt 0:00:05]} 57. Na6 {[%emt 0:00:04]} Kc6 {[%emt 0:01:27]} 58. Rb2 {[%emt 0:00:41]} Kb5 {[%emt 0:00:13]} 59. Nc7+ {[%emt 0:00:14]} Kc6 {[%emt 0:01:20]} 60. Rc2+ {[%emt 0:00:22]} Kb6 {[%emt 0:00:05]} 61. Nd5+ {[%emt 0:00:14]} Kb7 {[%emt 0:00:30]} 62. Rc7+ {[%emt 0:00:13]} Kb8 {[%emt 0:00:32]} 63. Rxh7 {[%emt 0:00:12]} Rg4 {[%emt 0:00:33]} 64. Ke3 {[%emt 0:01:03]} Re4+ {[%emt 0:00:08]} 65. Kd3 {[%emt 0:00:17]} Rg4 {[%emt 0:00:04]} 66. h4 {[%emt 0:00:30]} f4 {[%emt 0:00:22]} 67. h5 {[%emt 0:00:54]} f3 {[%emt 0:00:05]} 68. h6 {[%emt 0:01:18]} f2 {[%emt 0:00:35]} 69. Ke2 {[%emt 0:01:04]} Rg5 {[%emt 0:01:17]} 70. Rg7 {[%emt 0:00:45]} Rf5 {[%emt 0:00:38]} 71. Ne3 {[%emt 0:00:35]} Re5 {[%emt 0:00:19]} 72. Kxf2 {[%emt 0:00:21]} Rh5 {[%emt 0:00:07]} 73. h7 {[%emt 0:00:09]} Kc8 {[%emt 0:00:03]} 74. Rg8+ {[%emt 0:00:12]} Kd7 {[%emt 0:00:03]} 75. h8=Q {[%emt 0:00:05]} Rxh8 {[%emt 0:00:05]} 76. Rxh8 {[%emt 0:00:03]} Kc6 {[%emt 0:00:07]} 77. Rh5 {[%emt 0:00:05]} 1-0